[Event "WYCC U16 Girls 2019"]
[Site "Mumbai"]
[Date "2019.10.09"]
[Round "8.1"]
[White "Nurgali, Nazerke"]
[Black "Ciolacu, Alessia-Mihaela"]
[Result "1-0"]
[ECO "D02"]
[WhiteElo "2194"]
[BlackElo "2095"]
[Annotator "ChessBase"]
[PlyCount "101"]
[EventDate "2019.10.02"]
[EventType "swiss"]
[EventCountry "IND"]
[SourceTitle "playchess.com"]
[Source "ChessBase"]
[SourceQuality "1"]
[TimeControl "5400+30"]

1. d4 {[%emt 0:00:00]} d5 {[%emt 0:00:00]} 2. Nf3 {[%emt 0:00:00]} Nf6 {[%emt 0:00:00]} 3. c4 {[%emt 0:00:00]} e6 {[%emt 0:00:00]} 4. g3 {[%emt 0:00:24]} Bb4+ {[%emt 0:00:06]} 5. Bd2 {[%emt 0:00:12]} a5 {[%emt 0:00:06]} 6. Qc2 {[%emt 0:01:05]} O-O {[%emt 0:00:14]} 7. Bg2 {[%emt 0:00:37]} c5 {[%emt 0:00:15]} 8. cxd5 {[%emt 0:01:25]} cxd4 {[%emt 0:00:17]} 9. Nxd4 {[%emt 0:01:48]} Qb6 {[%emt 0:00:25]} 10. Nf3 {[%emt 0:01:44]} Nxd5 {[%emt 0:00:18]} 11. O-O {[%emt 0:01:55]} Bd7 {[%emt 0:01:15]} 12. Nc3 {[%emt 0:02:17]} Nf6 {[%emt 0:05:36]} 13. Bg5 {[%emt 0:02:27]} Bc6 {[%emt 0:07:11]} 14. Bxf6 {[%emt 0:03:22]} gxf6 {[%emt 0:00:06]} 15. Rad1 {[%emt 0:02:08]} Nd7 {[%emt 0:04:27]} 16. Rd4 {[%emt 0:06:40]} Bxf3 {[%emt 0:31:52]} 17. Rh4 {[%emt 0:00:08]} f5 {[%emt 0:00:13]} 18. Bxf3 {[%emt 0:01:30]} Be7 {[%emt 0:08:59]} 19. Rh3 {[%emt 0:03:09]} Rfd8 {[%emt 0:05:03]} 20. g4 {[%emt 0:05:14]} Nf6 {[%emt 0:03:38]} 21. gxf5 {[%emt 0:00:31]} Kh8 {[%emt 0:06:17]} 22. Ne4 {[%emt 0:07:08]} exf5 {[%emt 0:08:26]} 23. Ng3 {[%emt 0:02:05]} f4 {[%emt 0:00:59]} 24. Ne4 {[%emt 0:06:55]} Rg8+ {[%emt 0:01:26]} 25. Kh1 {[%emt 0:01:19]} Rg7 {[%emt 0:03:24]} 26. Nxf6 {[%emt 0:03:06]} Qxf6 {[%emt 0:00:31]} 27. Be4 {[%emt 0:01:32]} h6 {[%emt 0:00:27]} 28. Qc3 {[%emt 0:04:37]} Qg5 {[%emt 0:01:13]} 29. e3 {[%emt 0:04:43]} Bd6 {[%emt 0:04:41]} 30. exf4 {[%emt 0:01:45]} Bxf4 {[%emt 0:00:05]} 31. Bf3 {[%emt 0:01:57]} Rag8 {[%emt 0:00:41]} 32. Rh5 {[%emt 0:00:20]} Qg6 {[%emt 0:00:27]} 33. h3 {[%emt 0:00:33]} f6 {[%emt 0:00:28]} 34. Bg4 {[%emt 0:00:18]} Qe4+ {[%emt 0:02:32]} 35. Qf3 {[%emt 0:01:10]} Qc4 {[%emt 0:01:23]} 36. Rd1 {[%emt 0:00:19]} b6 {[%emt 0:00:42]} 37. b3 {[%emt 0:01:18]} Qc7 {[%emt 0:00:46]} 38. Rhd5 {[%emt 0:01:03]} Be5 {[%emt 0:01:35]} 39. Qf5 {[%emt 0:04:52]} Rg5 {[%emt 0:01:54]} 40. Qe4 {[%emt 0:01:50]} R5g7 {[%emt 0:01:23]} 41. Rd7 {[%emt 0:01:46]} Rxd7 {[%emt 0:00:00]} 42. Rxd7 {[%emt 0:00:00]} Qc1+ {[%emt 0:00:00]} 43. Kg2 {[%emt 0:00:00]} Rg7 {[%emt 0:00:00]} 44. Rd8+ {[%emt 0:00:00]} Rg8 {[%emt 0:00:00]} 45. Rxg8+ {[%emt 0:00:00]} Kxg8 {[%emt 0:00:00]} 46. Qd5+ {[%emt 0:00:00]} Kg7 {[%emt 0:00:00]} 47. Qd7+ {[%emt 0:00:00]} Kg6 {[%emt 0:00:00]} 48. Bf5+ {[%emt 0:00:00]} Kh5 {[%emt 0:00:00]} 49. Qe8+ {[%emt 0:00:00]} Kh4 {[%emt 0:00:00]} 50. Bg4 {[%emt 0:00:00]} Qg5 {[%emt 0:00:00]} 51. f4 {[%emt 0:00:00]} 1-0

[Event "WYCC U16 Girls 2019"]
[Site "Mumbai"]
[Date "2019.10.09"]
[Round "8.2"]
[White "Beydullayeva, Govhar"]
[Black "Garifullina, Leya"]
[Result "0-1"]
[ECO "E08"]
[WhiteElo "2289"]
[BlackElo "2330"]
[Annotator "ChessBase"]
[PlyCount "146"]
[EventDate "2019.10.02"]
[EventType "swiss"]
[EventCountry "IND"]
[SourceTitle "playchess.com"]
[Source "ChessBase"]
[SourceQuality "1"]
[TimeControl "5400+30"]

1. Nf3 {[%emt 0:00:00]} Nf6 {[%emt 0:00:00]} 2. c4 {[%emt 0:00:00]} e6 {[%emt 0:00:00]} 3. g3 {[%emt 0:00:00]} d5 {[%emt 0:00:00]} 4. d4 {[%emt 0:00:00]} Be7 {[%emt 0:00:05]} 5. Bg2 {[%emt 0:00:00]} O-O {[%emt 0:00:09]} 6. O-O {[%emt 0:00:04]} Nbd7 {[%emt 0:00:14]} 7. Qc2 {[%emt 0:01:04]} c6 {[%emt 0:00:12]} 8. b3 {[%emt 0:00:26]} b6 {[%emt 0:00:13]} 9. Rd1 {[%emt 0:00:06]} Bb7 {[%emt 0:00:25]} 10. Nc3 {[%emt 0:00:09]} Ba6 {[%emt 0:00:50]} 11. Qd3 {[%emt 0:00:19]} c5 {[%emt 0:06:34]} 12. Nb5 {[%emt 0:00:35]} Bxb5 {[%emt 0:00:28]} 13. cxb5 {[%emt 0:00:01]} Qc8 {[%emt 0:01:14]} 14. a4 {[%emt 0:12:19]} a6 {[%emt 0:02:08]} 15. Bb2 {[%emt 0:06:15]} axb5 {[%emt 0:03:21]} 16. Qxb5 {[%emt 0:07:40]} Ra5 {[%emt 0:06:16]} 17. Qd3 {[%emt 0:00:09]} Qb7 {[%emt 0:02:21]} 18. Bc3 {[%emt 0:07:15]} Ra7 {[%emt 0:00:13]} 19. Nd2 {[%emt 0:01:34]} cxd4 {[%emt 0:05:41]} 20. Bxd4 {[%emt 0:03:07]} Nc5 {[%emt 0:00:13]} 21. Qb1 {[%emt 0:05:35]} h6 {[%emt 0:04:18]} 22. Rc1 {[%emt 0:07:11]} Rc8 {[%emt 0:04:35]} 23. Ra2 {[%emt 0:03:15]} Raa8 {[%emt 0:01:36]} 24. Rac2 {[%emt 0:02:36]} Ncd7 {[%emt 0:01:31]} 25. e3 {[%emt 0:16:12]} Rxc2 {[%emt 0:10:24]} 26. Qxc2 {[%emt 0:01:02]} b5 {[%emt 0:01:24]} 27. Bf1 {[%emt 0:06:17]} bxa4 {[%emt 0:05:06]} 28. bxa4 {[%emt 0:00:05]} e5 {[%emt 0:01:49]} 29. Ba1 {[%emt 0:03:08]} Ba3 {[%emt 0:10:14]} 30. Rb1 {[%emt 0:00:50]} Qa7 {[%emt 0:01:46]} 31. Bb5 {[%emt 0:01:08]} Bd6 {[%emt 0:02:52]} 32. Nb3 {[%emt 0:07:29]} Ne4 {[%emt 0:04:49]} 33. Kg2 {[%emt 0:06:01]} Ndf6 {[%emt 0:04:01]} 34. f3 {[%emt 0:00:52]} Ng5 {[%emt 0:01:02]} 35. Qd2 {[%emt 0:02:34]} Qe7 {[%emt 0:02:04]} 36. h4 {[%emt 0:00:51]} Ne6 {[%emt 0:00:31]} 37. Rc1 {[%emt 0:00:48]} Nc7 {[%emt 0:01:25]} 38. Bc6 {[%emt 0:00:15]} Rb8 {[%emt 0:01:03]} 39. Qc2 {[%emt 0:00:35]} Na6 {[%emt 0:01:11]} 40. Bb5 {[%emt 0:00:34]} Nc7 {[%emt 0:00:37]} 41. Na5 {[%emt 0:00:00]} Ra8 {[%emt 0:00:00]} 42. Nc6 {[%emt 0:00:00]} Qe6 {[%emt 0:00:00]} 43. Bf1 {[%emt 0:00:00]} d4 {[%emt 0:00:00]} 44. e4 {[%emt 0:00:00]} Nh5 {[%emt 0:00:00]} 45. a5 {[%emt 0:00:00]} Qg6 {[%emt 0:00:00]} 46. Qf2 {[%emt 0:00:00]} Na6 {[%emt 0:00:00]} 47. Kh2 {[%emt 0:00:00]} Nc5 {[%emt 0:00:00]} 48. Bc4 {[%emt 0:00:28]} Kh8 {[%emt 0:00:00]} 49. g4 {[%emt 0:04:59]} Nf4 {[%emt 0:00:00]} 50. Rg1 {[%emt 0:00:19]} Bc7 {[%emt 0:00:00]} 51. Ne7 {[%emt 0:00:14]} Qf6 {[%emt 0:00:00]} 52. Nf5 {[%emt 0:00:24]} Nce6 {[%emt 0:00:00]} 53. g5 {[%emt 0:00:49]} hxg5 {[%emt 0:00:00]} 54. hxg5 {[%emt 0:00:02]} Qg6 {[%emt 0:00:00]} 55. Qh4+ {[%emt 0:00:53]} Qh7 {[%emt 0:00:00]} 56. Qxh7+ {[%emt 0:00:06]} Kxh7 {[%emt 0:00:00]} 57. a6 {[%emt 0:00:46]} g6 {[%emt 0:00:00]} 58. Ne7 {[%emt 0:00:48]} Kg7 {[%emt 0:00:00]} 59. Rh1 {[%emt 0:00:35]} Nc5 {[%emt 0:00:00]} 60. Nc6 {[%emt 0:00:40]} Nxa6 {[%emt 0:00:00]} 61. Nxd4 {[%emt 0:00:11]} exd4 {[%emt 0:01:02]} 62. Bxd4+ {[%emt 0:00:10]} Kg8 {[%emt 0:00:11]} 63. Kg1 {[%emt 0:00:14]} Nh5 {[%emt 0:00:09]} 64. Kf2 {[%emt 0:00:06]} Rd8 {[%emt 0:00:50]} 65. Bc3 {[%emt 0:00:27]} Bb6+ {[%emt 0:01:08]} 66. Kg2 {[%emt 0:00:17]} Rc8 {[%emt 0:00:22]} 67. Bxf7+ {[%emt 0:02:03]} Kxf7 {[%emt 0:00:05]} 68. Rb1 {[%emt 0:00:26]} Rxc3 {[%emt 0:00:22]} 69. Rxb6 {[%emt 0:00:01]} Nc5 {[%emt 0:00:39]} 70. e5 {[%emt 0:01:00]} Ne6 {[%emt 0:00:33]} 71. Rb7+ {[%emt 0:00:03]} Rc7 {[%emt 0:00:06]} 72. Rb4 {[%emt 0:00:55]} Nxg5 73. f4 {[%emt 0:00:51]} Ne6 {[%emt 0:00:18]} 0-1

[Event "WYCC U16 Girls 2019"]
[Site "Mumbai"]
[Date "2019.10.09"]
[Round "8.3"]
[White "Mahdian, Anousha"]
[Black "Mrudul Dehankar"]
[Result "1-0"]
[ECO "E20"]
[WhiteElo "2103"]
[BlackElo "2227"]
[Annotator "ChessBase"]
[PlyCount "85"]
[EventDate "2019.10.02"]
[EventType "swiss"]
[EventCountry "IND"]
[SourceTitle "playchess.com"]
[Source "ChessBase"]
[SourceQuality "1"]
[TimeControl "5400+30"]

1. d4 {[%emt 0:03:14]} Nf6 {[%emt 0:00:00]} 2. c4 {[%emt 0:00:02]} e6 {[%emt 0:00:05]} 3. Nc3 {[%emt 0:00:05]} Bb4 {[%emt 0:00:05]} 4. g3 {[%emt 0:00:01]} c5 {[%emt 0:02:20]} 5. Nf3 {[%emt 0:00:29]} cxd4 {[%emt 0:04:50]} 6. Nxd4 {[%emt 0:01:36]} Nc6 {[%emt 0:01:04]} 7. Bg2 {[%emt 0:00:16]} O-O {[%emt 0:02:40]} 8. O-O {[%emt 0:00:37]} d5 {[%emt 0:18:55]} 9. cxd5 {[%emt 0:07:52]} exd5 {[%emt 0:01:59]} 10. Bg5 {[%emt 0:05:53]} Be7 {[%emt 0:03:51]} 11. Rc1 {[%emt 0:06:15]} h6 {[%emt 0:07:59]} 12. Bf4 {[%emt 0:03:38]} Qb6 {[%emt 0:12:19]} 13. Nb3 {[%emt 0:26:52]} a5 {[%emt 0:10:19]} 14. a4 {[%emt 0:06:47]} Bg4 {[%emt 0:07:17]} 15. h3 {[%emt 0:10:53]} Be6 {[%emt 0:02:15]} 16. Nb5 {[%emt 0:00:17]} Rac8 {[%emt 0:03:39]} 17. Be3 {[%emt 0:03:33]} Qd8 {[%emt 0:05:19]} 18. Nc5 {[%emt 0:10:07]} b6 {[%emt 0:00:26]} 19. Nd3 {[%emt 0:00:31]} d4 {[%emt 0:04:43]} 20. Bxh6 {[%emt 0:01:12]} gxh6 {[%emt 0:02:43]} 21. Rxc6 {[%emt 0:00:03]} Rxc6 {[%emt 0:00:18]} 22. Bxc6 {[%emt 0:00:02]} Bxh3 {[%emt 0:00:12]} 23. Re1 {[%emt 0:00:25]} Bf5 {[%emt 0:00:54]} 24. Qc1 {[%emt 0:01:40]} Kg7 {[%emt 0:03:05]} 25. Qf4 {[%emt 0:04:51]} Bxd3 {[%emt 0:03:42]} 26. exd3 {[%emt 0:00:02]} Bc5 {[%emt 0:00:00]} 27. Kg2 {[%emt 0:01:21]} Qc8 {[%emt 0:01:49]} 28. Bf3 {[%emt 0:00:10]} Re8 {[%emt 0:00:36]} 29. Rh1 {[%emt 0:00:20]} Rh8 {[%emt 0:00:31]} 30. Nxd4 {[%emt 0:00:31]} Bxd4 {[%emt 0:00:28]} 31. Qxd4 {[%emt 0:00:04]} Qe6 {[%emt 0:00:28]} 32. Rh5 {[%emt 0:02:06]} Re8 {[%emt 0:00:36]} 33. Rb5 {[%emt 0:00:24]} Rb8 {[%emt 0:00:22]} 34. Re5 {[%emt 0:01:29]} Qd7 {[%emt 0:00:36]} 35. Qf4 {[%emt 0:01:41]} Rd8 {[%emt 0:00:29]} 36. Rf5 {[%emt 0:00:40]} Qe6 {[%emt 0:00:33]} 37. Re5 {[%emt 0:01:27]} Qd6 {[%emt 0:00:15]} 38. Rf5 {[%emt 0:00:53]} Qe6 {[%emt 0:00:08]} 39. Re5 {[%emt 0:00:13]} Qd6 {[%emt 0:00:03]} 40. Rf5 {[%emt 0:00:15]} Qe6 {[%emt 0:00:22]} 41. d4 {[%emt 0:00:23]} Rd7 {[%emt 0:00:00]} 42. Rxf6 {[%emt 0:00:00]} Qxf6 {[%emt 0:00:00]} 43. Qg4+ {[%emt 0:00:00]} 1-0

[Event "WYCC U16 Girls 2019"]
[Site "Mumbai"]
[Date "2019.10.09"]
[Round "8.4"]
[White "Loskutova, Viktoriya"]
[Black "Bommini Mounika Akshaya"]
[Result "1/2-1/2"]
[ECO "C07"]
[WhiteElo "2149"]
[BlackElo "2017"]
[Annotator "ChessBase"]
[PlyCount "145"]
[EventDate "2019.10.02"]
[EventType "swiss"]
[EventCountry "IND"]
[SourceTitle "playchess.com"]
[Source "ChessBase"]
[SourceQuality "1"]
[TimeControl "5400+30"]

1. e4 {[%emt 0:00:00]} e6 {[%emt 0:00:00]} 2. d4 {[%emt 0:00:00]} d5 {[%emt 0:00:00]} 3. Nd2 {[%emt 0:00:00]} c5 {[%emt 0:00:07]} 4. exd5 {[%emt 0:00:07]} Qxd5 {[%emt 0:00:08]} 5. Ngf3 {[%emt 0:00:10]} cxd4 {[%emt 0:00:11]} 6. Bc4 {[%emt 0:00:06]} Qd7 {[%emt 0:00:07]} 7. O-O {[%emt 0:00:48]} Nc6 {[%emt 0:00:13]} 8. Nb3 {[%emt 0:00:25]} a6 {[%emt 0:01:42]} 9. Nbxd4 {[%emt 0:06:46]} Nxd4 {[%emt 0:00:18]} 10. Nxd4 {[%emt 0:00:50]} Qc7 {[%emt 0:00:46]} 11. Bd3 {[%emt 0:02:32]} Bd6 {[%emt 0:00:34]} 12. h3 {[%emt 0:05:18]} Ne7 {[%emt 0:00:27]} 13. Qh5 {[%emt 0:07:02]} Nd5 {[%emt 0:25:22]} 14. Re1 {[%emt 0:04:23]} Nf6 {[%emt 0:10:21]} 15. Qh4 {[%emt 0:07:42]} Be7 {[%emt 0:04:39]} 16. c3 {[%emt 0:10:43]} Bd7 {[%emt 0:08:20]} 17. a4 {[%emt 0:13:00]} h6 {[%emt 0:02:54]} 18. a5 {[%emt 0:05:33]} O-O-O {[%emt 0:10:37]} 19. Qf4 {[%emt 0:07:14]} Bd6 {[%emt 0:07:42]} 20. Qf3 {[%emt 0:01:08]} e5 {[%emt 0:05:23]} 21. Nf5 {[%emt 0:01:32]} Bf8 {[%emt 0:09:48]} 22. Ng3 {[%emt 0:06:49]} Bc6 {[%emt 0:03:09]} 23. Qe2 {[%emt 0:01:50]} Bc5 {[%emt 0:04:06]} 24. Be3 {[%emt 0:10:23]} Bxe3 {[%emt 0:01:08]} 25. Qxe3 {[%emt 0:00:05]} Kb8 {[%emt 0:00:30]} 26. Bf1 {[%emt 0:01:22]} Rhe8 {[%emt 0:00:41]} 27. c4 {[%emt 0:01:04]} e4 {[%emt 0:02:57]} 28. b4 {[%emt 0:00:30]} Qe5 {[%emt 0:00:36]} 29. b5 {[%emt 0:01:48]} axb5 {[%emt 0:00:11]} 30. cxb5 {[%emt 0:01:32]} Bxb5 {[%emt 0:00:58]} 31. Bxb5 {[%emt 0:01:33]} Qxb5 {[%emt 0:00:06]} 32. Reb1 {[%emt 0:02:09]} Qa6 {[%emt 0:00:19]} 33. Nf5 {[%emt 0:01:06]} Nd5 {[%emt 0:00:48]} 34. Qg3+ {[%emt 0:00:15]} Ka8 {[%emt 0:00:12]} 35. Qxg7 {[%emt 0:00:38]} e3 {[%emt 0:01:12]} 36. Nxe3 {[%emt 0:00:31]} Nxe3 {[%emt 0:00:36]} 37. fxe3 {[%emt 0:00:01]} Qe6 {[%emt 0:00:40]} 38. Qc3 {[%emt 0:01:21]} Rc8 {[%emt 0:00:29]} 39. Qd4 {[%emt 0:00:40]} Rcd8 {[%emt 0:00:31]} 40. Qf4 {[%emt 0:00:12]} Qxe3+ {[%emt 0:00:35]} 41. Qxe3 {[%emt 0:00:27]} Rxe3 {[%emt 0:00:02]} 42. a6 {[%emt 0:00:23]} b5 {[%emt 0:00:00]} 43. Rxb5 {[%emt 0:00:00]} Re2 {[%emt 0:00:00]} 44. a7 {[%emt 0:00:00]} Re7 {[%emt 0:00:00]} 45. Rb6 {[%emt 0:00:00]} Rh8 {[%emt 0:00:00]} 46. Raa6 {[%emt 0:00:00]} h5 {[%emt 0:00:00]} 47. Rh6 {[%emt 0:00:00]} Re1+ {[%emt 0:00:00]} 48. Kf2 {[%emt 0:00:00]} Rhe8 {[%emt 0:00:00]} 49. Rxh5 {[%emt 0:00:00]} R1e2+ {[%emt 0:00:00]} 50. Kg1 {[%emt 0:00:00]} Rg8 {[%emt 0:00:00]} 51. g4 {[%emt 0:00:00]} Rc8 {[%emt 0:00:00]} 52. Ra1 {[%emt 0:00:00]} Rb2 {[%emt 0:00:00]} 53. Rf5 {[%emt 0:00:00]} Rc3 {[%emt 0:00:00]} 54. Rxf7 {[%emt 0:00:00]} Rg3+ {[%emt 0:00:00]} 55. Kf1 {[%emt 0:00:00]} Rg1+ {[%emt 0:00:00]} 56. Kxg1 {[%emt 0:00:00]} Rg2+ {[%emt 0:00:00]} 57. Kf1 {[%emt 0:00:00]} Rg1+ {[%emt 0:00:00]} 58. Ke2 {[%emt 0:00:00]} Re1+ {[%emt 0:00:00]} 59. Kd3 {[%emt 0:00:00]} Re3+ {[%emt 0:00:00]} 60. Kd4 {[%emt 0:00:00]} Re4+ {[%emt 0:00:00]} 61. Kd5 {[%emt 0:00:00]} Re5+ {[%emt 0:00:00]} 62. Kd6 {[%emt 0:00:00]} Re6+ {[%emt 0:00:00]} 63. Kd7 {[%emt 0:00:00]} Rd6+ {[%emt 0:00:00]} 64. Ke8 {[%emt 0:00:00]} Rd8+ {[%emt 0:00:00]} 65. Ke7 {[%emt 0:00:00]} Re8+ {[%emt 0:00:00]} 66. Kf6 {[%emt 0:00:00]} Re6+ {[%emt 0:00:00]} 67. Kf5 {[%emt 0:00:00]} Re5+ {[%emt 0:00:00]} 68. Kf4 {[%emt 0:03:41]} Re4+ {[%emt 0:00:00]} 69. Kf3 {[%emt 0:00:06]} Re3+ {[%emt 0:00:00]} 70. Kg2 {[%emt 0:02:03]} Rg3+ {[%emt 0:00:04]} 71. Kf2 {[%emt 0:00:34]} Rg2+ {[%emt 0:00:06]} 72. Kf3 {[%emt 0:00:52]} Rg3+ {[%emt 0:00:12]} 73. Kxg3 {[%emt 0:02:12]} 1/2-1/2

[Event "WYCC U16 Girls 2019"]
[Site "Mumbai"]
[Date "2019.10.09"]
[Round "8.5"]
[White "Demchenko, Svitlana"]
[Black "Salonika, Saina"]
[Result "0-1"]
[ECO "E90"]
[WhiteElo "1953"]
[BlackElo "2051"]
[Annotator "NA"]
[PlyCount "96"]
[EventDate "2019.10.02"]
[EventType "swiss"]
[EventCountry "IND"]
[SourceTitle "playchess.com"]
[Source "ChessBase"]
[SourceQuality "1"]
[TimeControl "5400+30"]

1. d4 {[%emt 0:00:00]} Nf6 {[%emt 0:00:00]} 2. c4 {[%emt 0:00:00]} g6 {[%emt 0:00:02]} 3. Nc3 {[%emt 0:00:00]} Bg7 {[%emt 0:00:05]} 4. e4 {[%emt 0:00:05]} d6 {[%emt 0:00:05]} 5. Nf3 {[%emt 0:00:10]} O-O {[%emt 0:00:05]} 6. h3 {[%emt 0:00:07]} e5 {[%emt 0:01:15]} 7. d5 {[%emt 0:00:06]} a5 {[%emt 0:00:41]} 8. g4 {[%emt 0:00:20]} Na6 {[%emt 0:00:48]} 9. Be3 {[%emt 0:00:52]} Nc5 {[%emt 0:01:33]} 10. Nd2 {[%emt 0:00:07]} Ne8 {[%emt 0:01:06]} 11. h4 {[%emt 0:11:21] E90: King's Indian: Classical: Early deviations and 6 h3} h6 {[%emt 0:20:03]} 12. Be2 {[%emt 0:02:36]} b6 {[%emt 0:06:15]} 13. Qc2 $146 {[%emt 0:05:28]} ({Predecessor:} 13. Nf1 Bd7 14. Qd2 Kh7 15. Ng3 Qc8 16. f3 Qd8 17. O-O-O {1-0 (49) Vaibhav,S (2599)-Quizon,D (2351) Xingtai 2019}) 13... f5 {[%emt 0:12:50]} 14. exf5 {[%emt 0:05:39]} gxf5 {[%emt 0:00:10]} 15. g5 {[%emt 0:00:12]} Na6 {[%emt 0:01:59]} 16. gxh6 {[%emt 0:05:41]} Bf6 {[%emt 0:02:22]} 17. Bg5 {[%emt 0:01:38]} Nb4 {[%emt 0:06:40]} 18. Qb3 {[%emt 0:01:31]} Kh8 {[%emt 0:01:50]} 19. O-O-O {[%emt 0:06:44]} Rg8 {[%emt 0:03:25]} 20. Nf3 {[%emt 0:07:50]} e4 {[%emt 0:05:45]} 21. Bxf6+ {[%emt 0:03:20]} Nxf6 {[%emt 0:01:08]} 22. Ng5 {[%emt 0:01:20]} Qe7 {[%emt 0:03:45]} 23. Nb5 {[%emt 0:06:30]} Bd7 {[%emt 0:04:05]} 24. Nd4 {[%emt 0:07:19]} Na6 {[%emt 0:00:52]} 25. Qc3 {[%emt 0:02:53]} Nc5 {[%emt 0:01:36]} 26. Kb1 {[%emt 0:04:25]} Raf8 {[%emt 0:02:52]} 27. f4 {[%emt 0:01:40]} Rg6 {[%emt 0:02:36]} 28. Bf1 {[%emt 0:00:57]} Na4 {[%emt 0:02:48]} 29. Qe1 {[%emt 0:04:57]} Ng4 {[%emt 0:03:25]} 30. Bh3 {[%emt 0:04:28]} Nxh6 {[%emt 0:01:14]} 31. Nde6 {[%emt 0:00:03]} Bxe6 {[%emt 0:03:47]} 32. Nxe6 {[%emt 0:00:02]} Qf6 {[%emt 0:01:31]} 33. Rd2 {[%emt 0:02:09]} Rf7 {[%emt 0:00:44]} 34. h5 {[%emt 0:02:26]} Rg8 {[%emt 0:00:19]} 35. Qd1 {[%emt 0:00:49]} Nc5 {[%emt 0:02:03]} 36. Nxc5 {[%emt 0:01:19]} bxc5 {[%emt 0:00:40]} 37. Qa4 {[%emt 0:03:06]} Qh4 {[%emt 0:01:11]} 38. Qxa5 {[%emt 0:02:25]} Qxf4 {[%emt 0:03:05]} 39. Rg2 {[%emt 0:05:17]} Rxg2 {[%emt 0:05:37]} 40. Bxg2 {[%emt 0:00:01]} Qf2 {[%emt 0:01:46]} 41. Qc3+ {[%emt 0:00:00] [#]} Rg7 {[%emt 0:00:00]} (41... Kh7 $1 $19 42. Qc2 Qxc2+ 43. Kxc2 Ng4) 42. Bh3 {[%emt 0:00:00]} Kh7 {[%emt 0:00:00]} 43. Rf1 {[%emt 0:00:00]} Qh2 {[%emt 0:00:00]} 44. Rxf5 $2 {[%emt 0:00:00]} (44. Qe3 {is more resistant.} Qe5 45. Rg1) 44... Rg3 $19 {[%emt 0:00:00] Double Attack} 45. Qf6 {[%emt 0:00:55]} Qxh3 {[%emt 0:00:00]} 46. Rf1 {[%emt 0:00:43]} Rg7 {[%emt 0:00:00]} 47. Qf4 {[%emt 0:01:32]} Qd3+ {[%emt 0:00:00]} 48. Ka1 {[%emt 0:00:20]} Rf7 {[%emt 0:00:00]} 0-1

[Event "WYCC U16 Girls 2019"]
[Site "Mumbai"]
[Date "2019.10.09"]
[Round "8.6"]
[White "Dahampriya, H K T Dewnethmie"]
[Black "Bulatova, Kamaliya"]
[Result "0-1"]
[ECO "B94"]
[WhiteElo "1629"]
[BlackElo "2181"]
[Annotator "ChessBase"]
[PlyCount "50"]
[EventDate "2019.10.02"]
[EventType "swiss"]
[EventCountry "IND"]
[SourceTitle "playchess.com"]
[Source "ChessBase"]
[SourceQuality "1"]
[TimeControl "5400+30"]

1. e4 {[%emt 0:00:00]} c5 {[%emt 0:00:00]} 2. Nf3 {[%emt 0:00:00]} d6 {[%emt 0:00:00]} 3. d4 {[%emt 0:00:00]} cxd4 {[%emt 0:00:00]} 4. Nxd4 {[%emt 0:00:00]} Nf6 {[%emt 0:00:00]} 5. Nc3 {[%emt 0:00:01]} a6 {[%emt 0:00:00]} 6. Bg5 {[%emt 0:00:06]} Nbd7 {[%emt 0:00:00]} 7. Bc4 {[%emt 0:00:12]} Qb6 {[%emt 0:00:00]} 8. a3 {[%emt 0:08:27]} Qc5 {[%emt 0:05:14]} 9. Bxf6 {[%emt 0:01:04]} Nxf6 {[%emt 0:01:24]} 10. Be2 {[%emt 0:05:17]} g6 {[%emt 0:04:35]} 11. Nb3 {[%emt 0:11:31]} Qc7 {[%emt 0:04:09]} 12. Bd3 {[%emt 0:16:14]} Bg7 {[%emt 0:04:41]} 13. f3 {[%emt 0:06:50]} Be6 {[%emt 0:09:01]} 14. Nd4 {[%emt 0:08:43]} Bc4 {[%emt 0:03:48]} 15. Nce2 {[%emt 0:04:11]} Nd7 {[%emt 0:04:12]} 16. f4 {[%emt 0:07:09]} e5 {[%emt 0:09:31]} 17. fxe5 {[%emt 0:00:42]} Nxe5 {[%emt 0:00:33]} 18. Rc1 {[%emt 0:08:22]} Bh6 {[%emt 0:05:06]} 19. Ra1 {[%emt 0:00:59]} Qb6 {[%emt 0:02:44]} 20. Rb1 {[%emt 0:03:33]} O-O {[%emt 0:04:10]} 21. h3 {[%emt 0:00:54]} Rae8 {[%emt 0:05:41]} 22. b4 {[%emt 0:05:50]} d5 {[%emt 0:03:18]} 23. Bxc4 {[%emt 0:01:18]} Nxc4 {[%emt 0:00:11]} 24. exd5 {[%emt 0:02:24]} Bd2+ {[%emt 0:02:08]} 25. Kf2 {[%emt 0:01:15]} Be3+ {[%emt 0:00:16]} 0-1

[Event "WYCC U16 Girls 2019"]
[Site "Mumbai"]
[Date "2019.10.09"]
[Round "8.7"]
[White "Srdanovic, Jovana"]
[Black "Juhasz, Judit"]
[Result "1-0"]
[ECO "E71"]
[WhiteElo "2100"]
[BlackElo "2004"]
[Annotator "ChessBase"]
[PlyCount "79"]
[EventDate "2019.10.02"]
[EventType "swiss"]
[EventCountry "IND"]
[SourceTitle "playchess.com"]
[Source "ChessBase"]
[SourceQuality "1"]
[TimeControl "5400+30"]

1. d4 {[%emt 0:00:00]} Nf6 {[%emt 0:00:00]} 2. c4 {[%emt 0:00:00]} g6 {[%emt 0:00:00]} 3. Nc3 {[%emt 0:00:00]} Bg7 {[%emt 0:00:00]} 4. e4 {[%emt 0:00:00]} d6 {[%emt 0:00:00]} 5. h3 {[%emt 0:00:04]} O-O {[%emt 0:00:07]} 6. Be3 {[%emt 0:00:06]} e5 {[%emt 0:00:12]} 7. d5 {[%emt 0:00:07]} a5 {[%emt 0:00:12]} 8. g4 {[%emt 0:00:06]} Na6 {[%emt 0:00:56]} 9. Nf3 {[%emt 0:00:10]} Nd7 {[%emt 0:00:51]} 10. a3 {[%emt 0:00:06]} f5 {[%emt 0:08:56]} 11. gxf5 {[%emt 0:07:39]} gxf5 {[%emt 0:00:08]} 12. exf5 {[%emt 0:02:24]} Rxf5 {[%emt 0:11:48]} 13. Bd3 {[%emt 0:01:52]} Ndc5 {[%emt 0:05:33]} 14. Bc2 {[%emt 0:17:30]} Bd7 {[%emt 0:20:14]} 15. Rg1 {[%emt 0:03:55]} Qf6 {[%emt 0:10:17]} 16. Nd2 {[%emt 0:03:54]} Rf8 {[%emt 0:05:28]} 17. Nde4 {[%emt 0:01:09]} Qh4 {[%emt 0:05:25]} 18. Qg4 {[%emt 0:01:13]} Qxg4 {[%emt 0:00:10]} 19. hxg4 {[%emt 0:00:05]} Rf4 {[%emt 0:02:53]} 20. Bxf4 {[%emt 0:01:58]} Rxf4 {[%emt 0:01:35]} 21. g5 {[%emt 0:02:28]} Bf5 {[%emt 0:04:56]} 22. Nf6+ {[%emt 0:03:53]} Bxf6 {[%emt 0:01:39]} 23. gxf6+ {[%emt 0:01:02]} Kf7 {[%emt 0:03:27]} 24. Bxf5 {[%emt 0:02:01]} Rxf5 {[%emt 0:00:04]} 25. Rg3 {[%emt 0:00:48]} Kxf6 {[%emt 0:02:16]} 26. Ke2 {[%emt 0:02:02]} Rf4 {[%emt 0:02:33]} 27. Rf3 {[%emt 0:00:25]} Kf5 {[%emt 0:02:33]} 28. Rxf4+ {[%emt 0:00:22]} Kxf4 {[%emt 0:00:04]} 29. Rh1 {[%emt 0:00:11]} Nb3 {[%emt 0:00:56]} 30. Nb5 {[%emt 0:01:10]} c6 {[%emt 0:02:15]} 31. dxc6 {[%emt 0:01:28]} bxc6 {[%emt 0:00:06]} 32. Nxd6 {[%emt 0:00:20]} Nd4+ {[%emt 0:00:10]} 33. Kd2 {[%emt 0:00:20]} Nf3+ {[%emt 0:03:30]} 34. Kc3 {[%emt 0:01:13]} Ng5 {[%emt 0:03:05]} 35. b4 {[%emt 0:00:37]} axb4+ {[%emt 0:02:05]} 36. axb4 {[%emt 0:00:05]} e4 {[%emt 0:01:46]} 37. Rh6 {[%emt 0:01:29]} Ke5 {[%emt 0:01:32]} 38. Nb7 {[%emt 0:01:17]} Nb8 {[%emt 0:00:31]} 39. Nc5 {[%emt 0:00:11]} Kf4 {[%emt 0:00:35]} 40. Rf6+ {[%emt 0:00:34]} 1-0